[Event "*** Titled Tuesday Blitz"]
[Site "Chess.com"]
[Date "2020.03.03"]
[Round "4"]
[White "Keranke"]
[Black "Shield12"]
[Result "1/2-1/2"]
[WhiteElo "2801"]
[BlackElo "2904"]
[TimeControl "180+1"]
[EndTime "9:43:15 PST"]
[Termination "Game drawn - insufficient material"]

1. d4 {[%clk 0:03:00.9]} 1... d5 {[%clk 0:03:00.1]} 2. Bf4 {[%clk 0:03:00]} 2...
Nf6 {[%clk 0:02:59.5]} 3. e3 {[%clk 0:03:00.1]} 3... c5 {[%clk 0:03:00]} 4. Nc3
{[%clk 0:03:00.2]} 4... cxd4 {[%clk 0:02:58.5]} 5. exd4 {[%clk 0:03:01.1]} 5...
a6 {[%clk 0:02:58.1]} 6. Nf3 {[%clk 0:03:01.4]} 6... Nc6 {[%clk 0:02:57.6]} 7.
Ne5 {[%clk 0:03:01.5]} 7... e6 {[%clk 0:02:48.1]} 8. Nxc6 {[%clk 0:02:57.1]}
8... bxc6 {[%clk 0:02:48.2]} 9. Na4 {[%clk 0:02:57.4]} 9... Nd7 {[%clk
0:02:45.6]} 10. Bd3 {[%clk 0:02:50.7]} 10... c5 {[%clk 0:02:42.2]} 11. dxc5
{[%clk 0:02:47.3]} 11... Nxc5 {[%clk 0:02:40.1]} 12. Nxc5 {[%clk 0:02:46.4]}
12... Bxc5 {[%clk 0:02:40.7]} 13. Qh5 {[%clk 0:02:28.5]} 13... Bd4 {[%clk
0:02:30.7]} 14. c3 {[%clk 0:02:05.1]} 14... Qf6 {[%clk 0:02:21]} 15. g3 {[%clk
0:01:45.3]} 15... e5 {[%clk 0:02:09.3]} 16. cxd4 {[%clk 0:01:44.9]} 16... exf4
{[%clk 0:02:08]} 17. Qxd5 {[%clk 0:01:44.9]} 17... Ra7 {[%clk 0:01:38.3]} 18.
O-O {[%clk 0:01:31.4]} 18... O-O {[%clk 0:01:37.7]} 19. Qe4 {[%clk 0:01:26.4]}
19... g6 {[%clk 0:01:30.5]} 20. Qxf4 {[%clk 0:01:26.7]} 20... Qxf4 {[%clk
0:01:27.9]} 21. gxf4 {[%clk 0:01:27.6]} 21... Rd8 {[%clk 0:01:28.4]} 22. Rac1
{[%clk 0:01:28.1]} 22... Be6 {[%clk 0:01:28.4]} 23. Rc6 {[%clk 0:01:22.8]} 23...
Rxd4 {[%clk 0:01:27.1]} 24. Bxa6 {[%clk 0:01:19.6]} 24... Rxf4 {[%clk
0:01:23.5]} 25. Rfc1 {[%clk 0:00:59.3]} 25... Bxa2 {[%clk 0:01:17.7]} 26. Bc4
{[%clk 0:00:54.8]} 26... Kg7 {[%clk 0:01:09.5]} 27. b3 {[%clk 0:00:38]} 27...
Rb7 {[%clk 0:01:03.5]} 28. Rc3 {[%clk 0:00:25.5]} 28... Bb1 {[%clk 0:01:03.3]}
29. f3 {[%clk 0:00:22.9]} 29... Bf5 {[%clk 0:00:57.8]} 30. Kg2 {[%clk
0:00:22.9]} 30... h5 {[%clk 0:00:57.2]} 31. Bd5 {[%clk 0:00:20.6]} 31... Rd7
{[%clk 0:00:55.4]} 32. R6c4 {[%clk 0:00:17.3]} 32... g5 {[%clk 0:00:47]} 33.
Rxf4 {[%clk 0:00:16.9]} 33... gxf4 {[%clk 0:00:47.9]} 34. Rc5 {[%clk 0:00:17.1]}
34... Kf6 {[%clk 0:00:47.1]} 35. h4 {[%clk 0:00:16.8]} 35... Ra7 {[%clk
0:00:42.4]} 36. b4 {[%clk 0:00:17]} 36... Ra1 {[%clk 0:00:41.1]} 37. b5 {[%clk
0:00:16]} 37... Rb1 {[%clk 0:00:41.2]} 38. Bc4 {[%clk 0:00:14.3]} 38... Rb2+
{[%clk 0:00:39.4]} 39. Kg1 {[%clk 0:00:14.2]} 39... Bg6 {[%clk 0:00:30.1]} 40.
Rc7 {[%clk 0:00:08]} 40... Ke5 {[%clk 0:00:25.1]} 41. Bxf7 {[%clk 0:00:07.5]}
41... Bd3 {[%clk 0:00:24.9]} 42. Rc5+ {[%clk 0:00:06.2]} 42... Kd4 {[%clk
0:00:24.6]} 43. Rxh5 {[%clk 0:00:04.8]} 43... Ke3 {[%clk 0:00:24.7]} 44. Bd5
{[%clk 0:00:05.4]} 44... Rb1+ {[%clk 0:00:23.9]} 45. Kh2 {[%clk 0:00:05.5]}
45... Kf2 {[%clk 0:00:23.4]} 46. Rg5 {[%clk 0:00:05.8]} 46... Rxb5 {[%clk
0:00:20.6]} 47. h5 {[%clk 0:00:03.7]} 47... Ke3 {[%clk 0:00:20]} 48. h6 {[%clk
0:00:03.9]} 48... Rb6 {[%clk 0:00:19.8]} 49. Rh5 {[%clk 0:00:03.8]} 49... Bh7
{[%clk 0:00:19.2]} 50. Kh3 {[%clk 0:00:03.4]} 50... Rb1 {[%clk 0:00:18.6]} 51.
Kh4 {[%clk 0:00:02.7]} 51... Rg1 {[%clk 0:00:17.4]} 52. Be4 {[%clk 0:00:03]}
52... Bxe4 {[%clk 0:00:14.6]} 53. fxe4 {[%clk 0:00:03.9]} 53... f3 {[%clk
0:00:13.2]} 54. h7 {[%clk 0:00:04.4]} 54... Rh1+ {[%clk 0:00:12.6]} 55. Kg5
{[%clk 0:00:04.2]} 55... Rxh5+ {[%clk 0:00:12.4]} 56. Kxh5 {[%clk 0:00:04.5]}
56... f2 {[%clk 0:00:13.3]} 57. h8=Q {[%clk 0:00:05.4]} 57... f1=Q {[%clk
0:00:14.2]} 58. Qe5 {[%clk 0:00:04.5]} 58... Qh1+ {[%clk 0:00:13.5]} 59. Kg5
{[%clk 0:00:04.7]} 59... Qxe4 {[%clk 0:00:13.4]} 60. Qxe4+ {[%clk 0:00:05.6]}
60... Kxe4 {[%clk 0:00:14.3]} 1/2-1/2

[Event "*** Titled Tuesday Blitz"]
[Site "Chess.com"]
[Date "2020.03.03"]
[Round "4"]
[White "Atanejhad"]
[Black "VALPARAISO37"]
[Result "0-1"]
[WhiteElo "2589"]
[BlackElo "2391"]
[TimeControl "180+1"]
[EndTime "9:43:23 PST"]
[Termination "VALPARAISO37 won on time"]

1. d4 {[%clk 0:03:00.8]} 1... Nf6 {[%clk 0:02:59.2]} 2. c4 {[%clk 0:03:00.4]}
2... e6 {[%clk 0:02:59]} 3. Nc3 {[%clk 0:02:59.6]} 3... Bb4 {[%clk 0:02:59]} 4.
e3 {[%clk 0:03:00]} 4... O-O {[%clk 0:02:58.7]} 5. Ne2 {[%clk 0:03:00.5]} 5...
d5 {[%clk 0:02:58.3]} 6. a3 {[%clk 0:03:00.4]} 6... Be7 {[%clk 0:02:58.8]} 7.
Ng3 {[%clk 0:02:59.1]} 7... Re8 {[%clk 0:02:52.6]} 8. Bd3 {[%clk 0:02:56.8]}
8... c6 {[%clk 0:02:51.1]} 9. O-O {[%clk 0:02:55.3]} 9... Bd6 {[%clk 0:02:49]}
10. e4 {[%clk 0:02:54.7]} 10... dxc4 {[%clk 0:02:45]} 11. Bxc4 {[%clk
0:02:53.1]} 11... e5 {[%clk 0:02:45]} 12. d5 {[%clk 0:02:52.9]} 12... Bg4 {[%clk
0:02:42.9]} 13. f3 {[%clk 0:02:51.4]} 13... Bc5+ {[%clk 0:02:38.5]} 14. Kh1
{[%clk 0:02:50.3]} 14... cxd5 {[%clk 0:02:31.5]} 15. Nxd5 {[%clk 0:02:44.7]}
15... Nxd5 {[%clk 0:02:19.7]} 16. Bxd5 {[%clk 0:02:45.6]} 16... Bc8 {[%clk
0:02:18.6]} 17. b4 {[%clk 0:02:27.9]} 17... Bd4 {[%clk 0:02:17.6]} 18. Rb1
{[%clk 0:02:26.6]} 18... Nd7 {[%clk 0:02:17.1]} 19. Qb3 {[%clk 0:02:26]} 19...
Rf8 {[%clk 0:02:14.1]} 20. Nf5 {[%clk 0:02:25.1]} 20... Bb6 {[%clk 0:02:12]} 21.
Rd1 {[%clk 0:02:21.7]} 21... Qf6 {[%clk 0:02:06.3]} 22. Be3 {[%clk 0:02:12]}
22... Bxe3 {[%clk 0:01:58]} 23. Qxe3 {[%clk 0:02:12.9]} 23... Nb6 {[%clk
0:01:57.6]} 24. Nd6 {[%clk 0:02:05.2]} 24... Rb8 {[%clk 0:01:43.6]} 25. Nxc8
{[%clk 0:01:59.5]} 25... Rfxc8 {[%clk 0:01:41.3]} 26. Bb3 {[%clk 0:01:58]} 26...
h5 {[%clk 0:01:39.5]} 27. h3 {[%clk 0:01:55.3]} 27... Nc4 {[%clk 0:01:33.1]} 28.
Bxc4 {[%clk 0:01:53.1]} 28... Rxc4 {[%clk 0:01:31.8]} 29. Qxa7 {[%clk
0:01:53.4]} 29... Rbc8 {[%clk 0:01:21]} 30. Qxb7 {[%clk 0:01:52.9]} 30... Rc2
{[%clk 0:01:21.6]} 31. Qd5 {[%clk 0:01:35.6]} 31... Qf4 {[%clk 0:01:15.2]} 32.
b5 {[%clk 0:01:29.6]} 32... Rxg2 {[%clk 0:01:14.3]} 33. Qd8+ {[%clk 0:01:23]}
33... Rxd8 {[%clk 0:01:14.3]} 34. Rxd8+ {[%clk 0:01:20.8]} 34... Kh7 {[%clk
0:01:14.7]} 35. Kxg2 {[%clk 0:01:21.5]} 35... Qg5+ {[%clk 0:01:14.7]} 36. Kh1
{[%clk 0:01:20]} 36... Qxd8 {[%clk 0:01:15.3]} 37. b6 {[%clk 0:01:20.2]} 37...
Qd3 {[%clk 0:01:15.1]} 38. Rb4 {[%clk 0:01:16.3]} 38... Qxf3+ {[%clk 0:01:14.7]}
39. Kh2 {[%clk 0:01:15.3]} 39... Qf2+ {[%clk 0:01:09.9]} 40. Kh1 {[%clk
0:01:15.2]} 40... Qf1+ {[%clk 0:01:03.2]} 41. Kh2 {[%clk 0:01:14.8]} 41... Qf2+
{[%clk 0:00:59.6]} 42. Kh1 {[%clk 0:01:14.7]} 42... Qf3+ {[%clk 0:00:47.6]} 43.
Kh2 {[%clk 0:01:13.9]} 43... Qxa3 {[%clk 0:00:43.2]} 44. Rb5 {[%clk 0:01:12.8]}
44... Qa2+ {[%clk 0:00:39.2]} 45. Kg3 {[%clk 0:01:10.8]} 45... Qa3+ {[%clk
0:00:36.1]} 46. Kh2 {[%clk 0:01:09.3]} 46... Qd3 {[%clk 0:00:33.9]} 47. Rxe5
{[%clk 0:01:03.1]} 47... Qd2+ {[%clk 0:00:31]} 48. Kg3 {[%clk 0:01:03.1]} 48...
Qc3+ {[%clk 0:00:30.4]} 49. Kf4 {[%clk 0:01:03.1]} 49... h4 {[%clk 0:00:25.8]}
50. Rb5 {[%clk 0:00:53]} 50... Qg3+ {[%clk 0:00:24.3]} 51. Kf5 {[%clk
0:00:53.1]} 51... Qxh3+ {[%clk 0:00:24.1]} 52. Ke5 {[%clk 0:00:53]} 52... Qe6+
{[%clk 0:00:24]} 53. Kd4 {[%clk 0:00:52.4]} 53... Qd6+ {[%clk 0:00:23.8]} 54.
Kc4 {[%clk 0:00:51.5]} 54... h3 {[%clk 0:00:24.1]} 55. b7 {[%clk 0:00:50.3]}
55... Qc7+ {[%clk 0:00:23.7]} 56. Kd4 {[%clk 0:00:49]} 56... Qd8+ {[%clk
0:00:22.1]} 57. Ke3 {[%clk 0:00:47.6]} 57... h2 {[%clk 0:00:22.3]} 58. Rh5+
{[%clk 0:00:44.4]} 58... Kg6 {[%clk 0:00:22.6]} 59. Rxh2 {[%clk 0:00:41.1]}
59... Qb6+ {[%clk 0:00:22.6]} 60. Kf3 {[%clk 0:00:38.7]} 60... Qxb7 {[%clk
0:00:23.2]} 61. Rg2+ {[%clk 0:00:39.4]} 61... Kf6 {[%clk 0:00:23.4]} 62. Rf2
{[%clk 0:00:38.2]} 62... Ke5 {[%clk 0:00:23]} 63. Rd2 {[%clk 0:00:36.8]} 63...
Qxe4+ {[%clk 0:00:22.2]} 0-1

[Event "*** Titled Tuesday Blitz"]
[Site "Chess.com"]
[Date "2020.03.03"]
[Round "4"]
[White "SnekkerAndersen"]
[Black "Irishchessman16"]
[Result "1/2-1/2"]
[WhiteElo "2487"]
[BlackElo "2189"]
[TimeControl "180+1"]
[EndTime "9:43:24 PST"]
[Termination "Game drawn - insufficient material"]

1. d4 {[%clk 0:02:09]} 1... Nf6 {[%clk 0:02:59.2]} 2. Bf4 {[%clk 0:02:09.3]}
2... d5 {[%clk 0:02:57.5]} 3. e3 {[%clk 0:02:09.4]} 3... c5 {[%clk 0:02:57.2]}
4. c3 {[%clk 0:02:08.8]} 4... Nc6 {[%clk 0:02:56.8]} 5. Nd2 {[%clk 0:02:08.9]}
5... e6 {[%clk 0:02:46.9]} 6. Bd3 {[%clk 0:02:08.5]} 6... Bd6 {[%clk 0:02:41.9]}
7. Bxd6 {[%clk 0:02:08.4]} 7... Qxd6 {[%clk 0:02:41.9]} 8. f4 {[%clk 0:02:09.3]}
8... cxd4 {[%clk 0:02:42]} 9. cxd4 {[%clk 0:02:08.7]} 9... Nb4 {[%clk
0:02:42.6]} 10. Bb1 {[%clk 0:02:04.8]} 10... Qa6 {[%clk 0:02:37.4]} 11. Nb3
{[%clk 0:01:42.7]} 11... Bd7 {[%clk 0:02:32]} 12. a3 {[%clk 0:01:40.1]} 12...
Nc6 {[%clk 0:02:27.1]} 13. Nc5 {[%clk 0:01:34.9]} 13... Qa5+ {[%clk 0:02:25.4]}
14. Qd2 {[%clk 0:01:01.2]} 14... Qxd2+ {[%clk 0:02:24.2]} 15. Kxd2 {[%clk
0:01:02.1]} 15... b6 {[%clk 0:02:24.9]} 16. Nxd7 {[%clk 0:01:02]} 16... Kxd7
{[%clk 0:02:24.7]} 17. Nf3 {[%clk 0:01:02.9]} 17... Rhc8 {[%clk 0:02:23.1]} 18.
b4 {[%clk 0:01:00.8]} 18... a5 {[%clk 0:02:22.1]} 19. b5 {[%clk 0:01:00.8]}
19... Ne7 {[%clk 0:02:15.5]} 20. Ne5+ {[%clk 0:01:00.1]} 20... Ke8 {[%clk
0:02:14.6]} 21. g4 {[%clk 0:00:54.9]} 21... Ne4+ {[%clk 0:02:13.9]} 22. Bxe4
{[%clk 0:00:53.5]} 22... dxe4 {[%clk 0:02:14.8]} 23. Rhc1 {[%clk 0:00:53.7]}
23... f6 {[%clk 0:02:14.2]} 24. Nc4 {[%clk 0:00:53.4]} 24... Rcb8 {[%clk
0:02:07]} 25. Nd6+ {[%clk 0:00:52.8]} 25... Kd7 {[%clk 0:02:06.7]} 26. Nxe4
{[%clk 0:00:53]} 26... Nd5 {[%clk 0:02:04.1]} 27. Rc2 {[%clk 0:00:44.7]} 27...
f5 {[%clk 0:02:03.5]} 28. gxf5 {[%clk 0:00:39]} 28... exf5 {[%clk 0:02:04.4]}
29. Nc3 {[%clk 0:00:39.6]} 29... Nf6 {[%clk 0:01:56.5]} 30. Kd3 {[%clk
0:00:34.9]} 30... Re8 {[%clk 0:01:55.7]} 31. Re2 {[%clk 0:00:29.8]} 31... Re6
{[%clk 0:01:55.1]} 32. e4 {[%clk 0:00:25.2]} 32... fxe4+ {[%clk 0:01:49.9]} 33.
Nxe4 {[%clk 0:00:26.1]} 33... Nd5 {[%clk 0:01:49.4]} 34. Rf1 {[%clk 0:00:25.2]}
34... Rf8 {[%clk 0:01:34.1]} 35. f5 {[%clk 0:00:22.5]} 35... Rh6 {[%clk
0:01:33.9]} 36. Ng3 {[%clk 0:00:15.2]} 36... Rh4 {[%clk 0:01:32.3]} 37. Rff2
{[%clk 0:00:13.7]} 37... Nf4+ {[%clk 0:01:31.5]} 38. Rxf4 {[%clk 0:00:14.2]}
38... Rxf4 {[%clk 0:01:31.3]} 39. Rc2 {[%clk 0:00:14.4]} 39... Rf3+ {[%clk
0:01:30.6]} 40. Ke4 {[%clk 0:00:14.3]} 40... Rxa3 {[%clk 0:01:29]} 41. Rc6
{[%clk 0:00:14.9]} 41... Rb8 {[%clk 0:01:28.8]} 42. f6 {[%clk 0:00:15.3]} 42...
gxf6 {[%clk 0:01:27.9]} 43. Rxf6 {[%clk 0:00:16.2]} 43... a4 {[%clk 0:01:18.7]}
44. Rh6 {[%clk 0:00:16.1]} 44... Re8+ {[%clk 0:01:11.2]} 45. Kd5 {[%clk
0:00:16.4]} 45... Re7 {[%clk 0:01:10]} 46. Rxb6 {[%clk 0:00:16.4]} 46... Ra1
{[%clk 0:01:09.4]} 47. Rb7+ {[%clk 0:00:16.2]} 47... Ke8 {[%clk 0:01:09.1]} 48.
Rb8+ {[%clk 0:00:16.7]} 48... Kf7 {[%clk 0:01:09.1]} 49. Nf5 {[%clk 0:00:17.6]}
49... Rd7+ {[%clk 0:01:09.1]} 50. Nd6+ {[%clk 0:00:18.2]} 50... Kg7 {[%clk
0:01:08.8]} 51. b6 {[%clk 0:00:17.9]} 51... Rb1 {[%clk 0:01:03.9]} 52. b7 {[%clk
0:00:16.2]} 52... Rb6 {[%clk 0:01:03.2]} 53. Ra8 {[%clk 0:00:12.7]} 53... Rbxd6+
{[%clk 0:01:00.6]} 54. Kc5 {[%clk 0:00:13.1]} 54... Rd5+ {[%clk 0:01:00.1]} 55.
Kc6 {[%clk 0:00:13.5]} 55... Rd8 {[%clk 0:00:42]} 56. b8=Q {[%clk 0:00:08]}
56... Rxb8 {[%clk 0:00:40.2]} 57. Ra7+ {[%clk 0:00:08.6]} 57... Kg6 {[%clk
0:00:36.4]} 58. Kxd5 {[%clk 0:00:08.9]} 58... Rb4 {[%clk 0:00:36.1]} 59. Kc5
{[%clk 0:00:09]} 59... Rb2 {[%clk 0:00:36.2]} 60. h4 {[%clk 0:00:09.6]} 60...
Rh2 {[%clk 0:00:35.5]} 61. Rxa4 {[%clk 0:00:09.4]} 61... Rxh4 {[%clk 0:00:35.2]}
62. Ra6+ {[%clk 0:00:10]} 62... Kf5 {[%clk 0:00:34.8]} 63. d5 {[%clk 0:00:10.9]}
63... Rh1 {[%clk 0:00:34.2]} 64. Ra8 {[%clk 0:00:09.7]} 64... Rc1+ {[%clk
0:00:32.3]} 65. Kd6 {[%clk 0:00:10.2]} 65... h5 {[%clk 0:00:32.4]} 66. Rh8
{[%clk 0:00:10.4]} 66... Kg4 {[%clk 0:00:32]} 67. Ke7 {[%clk 0:00:09.6]} 67...
h4 {[%clk 0:00:31.9]} 68. d6 {[%clk 0:00:09.9]} 68... h3 {[%clk 0:00:31.3]} 69.
d7 {[%clk 0:00:10.1]} 69... Rd1 {[%clk 0:00:31]} 70. d8=Q {[%clk 0:00:09.5]}
70... Rxd8 {[%clk 0:00:29.7]} 71. Kxd8 {[%clk 0:00:10.4]} 71... Kg3 {[%clk
0:00:30.1]} 72. Ke7 {[%clk 0:00:10.5]} 72... h2 {[%clk 0:00:30.2]} 73. Ke6
{[%clk 0:00:11]} 73... Kg2 {[%clk 0:00:30.3]} 74. Ke5 {[%clk 0:00:10.6]} 74...
h1=Q {[%clk 0:00:29.3]} 75. Rxh1 {[%clk 0:00:11.5]} 75... Kxh1 {[%clk
0:00:30.2]} 1/2-1/2

[Event "*** Titled Tuesday Blitz"]
[Site "Chess.com"]
[Date "2020.03.03"]
[Round "4"]
[White "Vusatiuk_Vladimir"]
[Black "joppie2"]
[Result "1-0"]
[WhiteElo "2246"]
[BlackElo "2791"]
[TimeControl "180+1"]
[EndTime "9:43:30 PST"]
[Termination "Vusatiuk_Vladimir won by resignation"]

1. e4 {[%clk 0:03:00]} 1... c5 {[%clk 0:02:26]} 2. Nf3 {[%clk 0:02:59.3]} 2...
d6 {[%clk 0:02:25.1]} 3. d4 {[%clk 0:02:59.6]} 3... cxd4 {[%clk 0:02:13.3]} 4.
Qxd4 {[%clk 0:03:00.5]} 4... Nf6 {[%clk 0:02:14]} 5. Be2 {[%clk 0:02:59.7]} 5...
g6 {[%clk 0:02:09.4]} 6. c4 {[%clk 0:02:56.8]} 6... Bg7 {[%clk 0:02:00.3]} 7.
Nc3 {[%clk 0:02:56.1]} 7... O-O {[%clk 0:01:56.9]} 8. O-O {[%clk 0:02:53.2]}
8... Nc6 {[%clk 0:01:55.8]} 9. Qe3 {[%clk 0:02:51.8]} 9... Ng4 {[%clk
0:01:49.9]} 10. Qf4 {[%clk 0:02:48.5]} 10... Nge5 {[%clk 0:01:45.3]} 11. Rd1
{[%clk 0:02:39.7]} 11... Nxf3+ {[%clk 0:01:44.8]} 12. Qxf3 {[%clk 0:02:28.6]}
12... Nd4 {[%clk 0:01:45.7]} 13. Qd3 {[%clk 0:02:26.8]} 13... e5 {[%clk
0:01:14.1]} 14. Be3 {[%clk 0:02:22.4]} 14... a6 {[%clk 0:01:12.8]} 15. Bf1
{[%clk 0:02:19.6]} 15... Be6 {[%clk 0:00:50.1]} 16. Bxd4 {[%clk 0:02:12.3]}
16... exd4 {[%clk 0:00:51]} 17. Ne2 {[%clk 0:02:12.6]} 17... Rc8 {[%clk
0:00:50.3]} 18. b3 {[%clk 0:02:12.4]} 18... b5 {[%clk 0:00:45.7]} 19. cxb5
{[%clk 0:02:08.5]} 19... axb5 {[%clk 0:00:44.5]} 20. Nxd4 {[%clk 0:01:56.6]}
20... Bd7 {[%clk 0:00:44.7]} 21. a4 {[%clk 0:01:48.8]} 21... b4 {[%clk
0:00:42.5]} 22. Rac1 {[%clk 0:01:44.7]} 22... Qg5 {[%clk 0:00:39.7]} 23. Rc4
{[%clk 0:01:31.2]} 23... Bg4 {[%clk 0:00:24.7]} 24. Be2 {[%clk 0:01:18.8]} 24...
Bxe2 {[%clk 0:00:17.2]} 25. Nxe2 {[%clk 0:01:12.6]} 25... Qh5 {[%clk 0:00:16.5]}
26. Nf4 {[%clk 0:01:02.5]} 26... Qe5 {[%clk 0:00:13.8]} 27. Nd5 {[%clk
0:00:58.5]} 27... h5 {[%clk 0:00:10]} 28. Rxb4 {[%clk 0:00:55.2]} 28... h4
{[%clk 0:00:06.8]} 29. Rb7 {[%clk 0:00:51]} 29... Qb2 {[%clk 0:00:06]} 30. Ne7+
{[%clk 0:00:49.1]} 30... Kh7 {[%clk 0:00:06.5]} 31. Nxc8 {[%clk 0:00:49]} 31...
Rxc8 {[%clk 0:00:07.4]} 32. Rxf7 {[%clk 0:00:42.5]} 32... Rc2 {[%clk 0:00:04.8]}
33. Qh3 {[%clk 0:00:37.3]} 33... Kg8 {[%clk 0:00:04.9]} 34. Qe6 {[%clk
0:00:29.1]} 34... Kh7 {[%clk 0:00:03.1]} 35. Qe7 {[%clk 0:00:26.2]} 35... Qd4
{[%clk 0:00:02.2]} 36. Qxh4+ {[%clk 0:00:25.3]} 36... Kg8 {[%clk 0:00:02.7]} 37.
Rxg7+ {[%clk 0:00:21.6]} 37... Kxg7 {[%clk 0:00:03.6]} 38. Rf1 {[%clk 0:00:17]}
38... Qe5 {[%clk 0:00:02.6]} 39. Qg4 {[%clk 0:00:14.4]} 39... Rc7 {[%clk
0:00:02.9]} 40. Qe2 {[%clk 0:00:13.3]} 40... Qd4 {[%clk 0:00:03.1]} 41. h3
{[%clk 0:00:10.5]} 41... Rc3 {[%clk 0:00:03.3]} 42. Rd1 {[%clk 0:00:10.7]} 42...
Qb4 {[%clk 0:00:03.3]} 43. Qb5 {[%clk 0:00:09.6]} 43... Qa3 {[%clk 0:00:02.3]}
44. Qd5 {[%clk 0:00:07.2]} 44... Rxb3 {[%clk 0:00:02.2]} 45. Qd4+ {[%clk
0:00:07]} 45... Kh6 {[%clk 0:00:01.9]} 46. Qxd6 {[%clk 0:00:06.9]} 46... Qxa4
{[%clk 0:00:01.9]} 47. Qf4+ {[%clk 0:00:07]} 47... Kh7 {[%clk 0:00:02.1]} 48.
Rc1 {[%clk 0:00:06.1]} 48... Rb7 {[%clk 0:00:02.6]} 49. Rc7+ {[%clk 0:00:05.7]}
49... Rxc7 {[%clk 0:00:03.2]} 50. Qxc7+ {[%clk 0:00:06.6]} 50... Kh6 {[%clk
0:00:04.1]} 51. Qf4+ {[%clk 0:00:06.7]} 51... Kg7 {[%clk 0:00:04.8]} 52. h4
{[%clk 0:00:06.7]} 52... Qd4 {[%clk 0:00:05]} 53. Kh2 {[%clk 0:00:06.7]} 53...
Qd3 {[%clk 0:00:04.7]} 54. f3 {[%clk 0:00:06.8]} 54... Qd4 {[%clk 0:00:04.6]}
55. Qg5 {[%clk 0:00:06.7]} 55... Qd6+ {[%clk 0:00:04.5]} 56. e5 {[%clk
0:00:07.1]} 56... Qd4 {[%clk 0:00:02.3]} 57. Qf6+ {[%clk 0:00:07.4]} 57... Kh7
{[%clk 0:00:02.7]} 58. Qg5 {[%clk 0:00:06]} 58... Qc3 {[%clk 0:00:02.3]} 59. e6
{[%clk 0:00:04.7]} 59... Qc7+ {[%clk 0:00:02.7]} 60. f4 {[%clk 0:00:04.7]} 60...
Kg7 {[%clk 0:00:02.6]} 61. Qe5+ {[%clk 0:00:05]} 61... Qxe5 {[%clk 0:00:01.7]}
62. fxe5 {[%clk 0:00:05.9]} 62... Kf8 {[%clk 0:00:02.6]} 63. Kg3 {[%clk
0:00:06.6]} 63... Ke7 {[%clk 0:00:03.5]} 64. Kg4 {[%clk 0:00:07.3]} 64... Kxe6
{[%clk 0:00:04.4]} 65. Kg5 {[%clk 0:00:08]} 65... Kxe5 {[%clk 0:00:05.3]} 66.
Kxg6 {[%clk 0:00:08.6]} 1-0